[Event "Titled Tuesday Blitz February 28 Early 2023"]
[White "Ansh M Shah"]
[Black "Nan, M K Khine Hlyan"]
[WhiteFideId "25033379"]
[BlackFideId "13002899"]
[WhiteElo "2084"]
[BlackElo "1943"]
[Result "1-0"]
[Round "05"]
[TimeControl "180+2"]
[Date "2023.02.28"]
[WhiteClock "0:01:17"]
[BlackClock "0:01:49"]

1. d4 {[%clk 0:02:51]}  d6 {[%clk 0:02:58]} 2. c4 {[%clk 0:02:52]}  g6 {[%clk 0:02:56]} 3. h4 {[%clk 0:02:41]}  Bg7 {[%clk 0:02:56]} 4. h5 {[%clk 0:02:39]}  c6 {[%clk 0:02:47]} 5. Nc3 {[%clk 0:02:39]}  Be6 {[%clk 0:02:44]} 6. e4 {[%clk 0:02:38]}  Nd7 {[%clk 0:02:42]} 7. d5 {[%clk 0:02:24]}  cxd5 {[%clk 0:02:41]} 8. cxd5 {[%clk 0:02:24]}  Bxc3+ {[%clk 0:02:35]} 9. bxc3 {[%clk 0:02:25]}  Qa5 {[%clk 0:02:34]} 10. dxe6 {[%clk 0:02:23]}  Qxc3+ {[%clk 0:02:33]} 11. Bd2 {[%clk 0:02:23]}  Qe5 {[%clk 0:02:28]} 12. exd7+ {[%clk 0:02:22]}  Kxd7 {[%clk 0:02:26]} 13. hxg6 {[%clk 0:01:56]}  fxg6 {[%clk 0:02:23]} 14. Qa4+ {[%clk 0:01:44]}  Kd8 {[%clk 0:02:13]} 15. Qa5+ {[%clk 0:01:42]}  Qxa5 {[%clk 0:02:10]} 16. Bxa5+ {[%clk 0:01:43]}  b6 {[%clk 0:02:08]} 17. Bc3 {[%clk 0:01:43]}  e5 {[%clk 0:02:09]} 18. Ba6 {[%clk 0:01:40]}  Nf6 {[%clk 0:02:08]} 19. f3 {[%clk 0:01:39]}  Ke7 {[%clk 0:02:05]} 20. Ne2 {[%clk 0:01:39]}  d5 {[%clk 0:02:03]} 21. Bxe5 {[%clk 0:01:35]}  dxe4 {[%clk 0:01:59]} 22. Bxf6+ {[%clk 0:01:25]}  Kxf6 {[%clk 0:01:58]} 23. fxe4 {[%clk 0:01:25]}  Rhe8 {[%clk 0:01:57]} 24. O-O+ {[%clk 0:01:25]}  Kg7 {[%clk 0:01:56]} 25. Rac1 {[%clk 0:01:20]}  Rxe4 {[%clk 0:01:54]} 26. Bb7 {[%clk 0:01:19]}  Rxe2 {[%clk 0:01:55]} 27. Bxa8 {[%clk 0:01:19]}  Rxa2 {[%clk 0:01:54]} 28. Bd5 {[%clk 0:01:17]}  Rd2 {[%clk 0:01:52]} 29. Bf3 {[%clk 0:01:16]}  a5 {[%clk 0:01:50]} 30. Rfd1 {[%clk 0:01:17]}  Rxg2+ {[%clk 0:01:49]} 31. Kxg2 {[%clk 0:01:17]} 1-0


[Site "https://www.chess.com"]

[Event "Titled Tuesday Blitz February 28 Early 2023"]
[White "Da Silva Borges, Rodrigo"]
[Black "Castellanos Villela, Alejandro"]
[WhiteFideId "2115778"]
[BlackFideId "3446379"]
[WhiteElo "2099"]
[BlackElo "2102"]
[Result "0-1"]
[Round "05"]
[TimeControl "180+2"]
[Date "2023.02.28"]
[WhiteClock "0:00:34"]
[BlackClock "0:00:19"]

1. e4 {[%clk 0:03:00]}  c5 {[%clk 0:02:58]} 2. Nf3 {[%clk 0:02:58]}  d6 {[%clk 0:02:58]} 3. d4 {[%clk 0:02:58]}  cxd4 {[%clk 0:02:59]} 4. Nxd4 {[%clk 0:02:59]}  Nf6 {[%clk 0:02:59]} 5. Nc3 {[%clk 0:02:59]}  a6 {[%clk 0:03:00]} 6. Be3 {[%clk 0:02:59]}  e5 {[%clk 0:02:59]} 7. Nb3 {[%clk 0:02:59]}  Be6 {[%clk 0:03:00]} 8. Qd2 {[%clk 0:02:59]}  Nbd7 {[%clk 0:02:59]} 9. O-O-O {[%clk 0:02:59]}  Rc8 {[%clk 0:02:57]} 10. f4 {[%clk 0:02:59]}  b5 {[%clk 0:02:53]} 11. f5 {[%clk 0:02:59]}  Bc4 {[%clk 0:02:45]} 12. g4 {[%clk 0:02:53]}  Nxg4 {[%clk 0:02:37]} 13. Rg1 {[%clk 0:02:53]}  Nxe3 {[%clk 0:02:36]} 14. Qxe3 {[%clk 0:02:53]}  Nf6 {[%clk 0:02:30]} 15. Nd2 {[%clk 0:02:47]}  Bxf1 {[%clk 0:02:26]} 16. Nxf1 {[%clk 0:02:47]}  g6 {[%clk 0:02:11]} 17. Qf3 {[%clk 0:02:43]}  Be7 {[%clk 0:02:08]} 18. Ne3 {[%clk 0:02:43]}  Rxc3 {[%clk 0:01:55]} 19. bxc3 {[%clk 0:02:41]}  Qa5 {[%clk 0:01:56]} 20. Kb2 {[%clk 0:02:24]}  b4 {[%clk 0:01:55]} 21. Nd5 {[%clk 0:02:21]}  Qa3+ {[%clk 0:01:50]} 22. Ka1 {[%clk 0:02:15]}  Nxd5 {[%clk 0:01:48]} 23. Rxd5 {[%clk 0:02:14]}  bxc3 {[%clk 0:01:43]} 24. Rb1 {[%clk 0:02:13]}  O-O {[%clk 0:01:42]} 25. f6 {[%clk 0:02:12]}  Bd8 {[%clk 0:01:40]} 26. Qd3 {[%clk 0:02:10]}  Bxf6 {[%clk 0:01:37]} 27. Rxd6 {[%clk 0:02:09]}  Bg5 {[%clk 0:01:20]} 28. Rxa6 {[%clk 0:02:08]}  Qc5 {[%clk 0:01:19]} 29. Qd5 {[%clk 0:01:45]}  Qf2 {[%clk 0:01:09]} 30. Qxe5 {[%clk 0:01:40]}  Be3 {[%clk 0:01:00]} 31. Ra4 {[%clk 0:01:25]}  Qxc2 {[%clk 0:00:57]} 32. Rc4 {[%clk 0:01:22]}  Bd2 {[%clk 0:00:44]} 33. h4 {[%clk 0:01:08]}  h5 {[%clk 0:00:43]} 34. Rc6 {[%clk 0:01:02]}  Kh7 {[%clk 0:00:22]} 35. Qe7 {[%clk 0:00:53]}  Kg7 {[%clk 0:00:20]} 36. Qf6+ {[%clk 0:00:53]}  Kh7 {[%clk 0:00:19]} 37. Rc7 {[%clk 0:00:51]}  Kg8 {[%clk 0:00:18]} 38. e5 {[%clk 0:00:39]}  Bc1 {[%clk 0:00:18]} 39. e6 {[%clk 0:00:34]}  Bb2+ {[%clk 0:00:18]} 40. Rxb2 {[%clk 0:00:34]}  Qxb2# {[%clk 0:00:19]} 0-1


[Site "https://www.chess.com"]

[Event "Titled Tuesday Blitz February 28 Early 2023"]
[White "Korpics, Zsolt"]
[Black "lisjakzlatko1"]
[WhiteFideId "705241"]
[WhiteElo "2318"]
[BlackElo "2160"]
[Result "1-0"]
[Round "05"]
[TimeControl "180+2"]
[Date "2023.02.28"]
[WhiteClock "0:00:12"]
[BlackClock "0:00:02"]

1. e4 {[%clk 0:03:00]}  d6 {[%clk 0:02:58]} 2. d4 {[%clk 0:02:59]}  Nf6 {[%clk 0:02:58]} 3. Nc3 {[%clk 0:02:59]}  c6 {[%clk 0:02:59]} 4. Nf3 {[%clk 0:02:40]}  Qa5 {[%clk 0:02:52]} 5. Bd3 {[%clk 0:02:38]}  e5 {[%clk 0:02:50]} 6. O-O {[%clk 0:02:36]}  Be7 {[%clk 0:02:50]} 7. h3 {[%clk 0:02:31]}  O-O {[%clk 0:02:48]} 8. Ne2 {[%clk 0:02:28]}  Nbd7 {[%clk 0:02:43]} 9. g4 {[%clk 0:01:43]}  d5 {[%clk 0:02:33]} 10. Bd2 {[%clk 0:01:14]}  Qc7 {[%clk 0:02:26]} 11. Nxe5 {[%clk 0:01:05]}  Nxe5 {[%clk 0:02:10]} 12. dxe5 {[%clk 0:01:03]}  Nxe4 {[%clk 0:02:09]} 13. Bf4 {[%clk 0:01:01]}  Be6 {[%clk 0:01:41]} 14. Ng3 {[%clk 0:00:50]}  Bg5 {[%clk 0:01:23]} 15. Bxg5 {[%clk 0:00:44]}  Nxg5 {[%clk 0:01:21]} 16. Kh2 {[%clk 0:00:44]}  h5 {[%clk 0:01:13]} 17. f4 {[%clk 0:00:40]}  h4 {[%clk 0:00:46]} 18. Nf5 {[%clk 0:00:34]}  Ne4 {[%clk 0:00:37]} 19. Bxe4 {[%clk 0:00:32]}  dxe4 {[%clk 0:00:36]} 20. Nd6 {[%clk 0:00:33]}  Bd5 {[%clk 0:00:31]} 21. c4 {[%clk 0:00:30]}  Be6 {[%clk 0:00:29]} 22. Qe2 {[%clk 0:00:30]}  f6 {[%clk 0:00:26]} 23. Qxe4 {[%clk 0:00:27]}  fxe5 {[%clk 0:00:21]} 24. fxe5 {[%clk 0:00:28]}  Qb6 {[%clk 0:00:17]} 25. b3 {[%clk 0:00:19]}  Rf2+ {[%clk 0:00:15]} 26. Kh1 {[%clk 0:00:19]}  Raf8 {[%clk 0:00:13]} 27. Nf5 {[%clk 0:00:13]}  Bxf5 {[%clk 0:00:07]} 28. gxf5 {[%clk 0:00:13]}  Rd2 {[%clk 0:00:02]} 29. f6 {[%clk 0:00:12]} 1-0


[Site "https://www.chess.com"]

[Event "Titled Tuesday Blitz February 28 Early 2023"]
[White "Grave, Jacob Templen"]
[Black "Simonovic, Miroslav"]
[WhiteFideId "1542656"]
[BlackFideId "919152"]
[WhiteElo "2191"]
[BlackElo "2057"]
[Result "1-0"]
[Round "05"]
[TimeControl "180+2"]
[Date "2023.02.28"]
[WhiteClock "0:00:09"]
[BlackClock "0:00:25"]

1. c4 {[%clk 0:03:00]}  c5 {[%clk 0:03:00]} 2. Nf3 {[%clk 0:02:56]}  Nc6 {[%clk 0:03:00]} 3. d4 {[%clk 0:02:55]}  cxd4 {[%clk 0:02:59]} 4. Nxd4 {[%clk 0:02:56]}  g6 {[%clk 0:02:59]} 5. e4 {[%clk 0:02:49]}  Bg7 {[%clk 0:02:59]} 6. Be3 {[%clk 0:02:48]}  d6 {[%clk 0:02:58]} 7. Nc3 {[%clk 0:02:47]}  Nf6 {[%clk 0:02:57]} 8. Be2 {[%clk 0:02:46]}  O-O {[%clk 0:02:57]} 9. O-O {[%clk 0:02:45]}  Bd7 {[%clk 0:02:53]} 10. Nc2 {[%clk 0:02:41]}  Rc8 {[%clk 0:02:51]} 11. Qd2 {[%clk 0:02:32]}  a6 {[%clk 0:02:40]} 12. Rac1 {[%clk 0:02:27]}  Qc7 {[%clk 0:02:32]} 13. b3 {[%clk 0:02:15]}  Rfd8 {[%clk 0:02:30]} 14. h3 {[%clk 0:02:09]}  b6 {[%clk 0:02:08]} 15. Nd5 {[%clk 0:01:56]}  Nxd5 {[%clk 0:02:07]} 16. cxd5 {[%clk 0:01:56]}  Nb8 {[%clk 0:02:04]} 17. Nd4 {[%clk 0:01:23]}  Qb7 {[%clk 0:02:04]} 18. f4 {[%clk 0:01:21]}  e6 {[%clk 0:01:51]} 19. dxe6 {[%clk 0:01:18]}  Bxe6 {[%clk 0:01:52]} 20. Bf3 {[%clk 0:01:17]}  Rxc1 {[%clk 0:01:26]} 21. Rxc1 {[%clk 0:01:18]}  Rc8 {[%clk 0:01:26]} 22. Rxc8+ {[%clk 0:01:10]}  Bxc8 {[%clk 0:01:27]} 23. Qb4 {[%clk 0:00:59]}  Qc7 {[%clk 0:01:19]} 24. Kh1 {[%clk 0:00:48]}  Nd7 {[%clk 0:01:16]} 25. Qd2 {[%clk 0:00:28]}  Bb7 {[%clk 0:01:12]} 26. Ne2 {[%clk 0:00:23]}  h5 {[%clk 0:01:11]} 27. Bd4 {[%clk 0:00:18]}  Bxd4 {[%clk 0:01:05]} 28. Qxd4 {[%clk 0:00:19]}  Qc5 {[%clk 0:01:05]} 29. Qd3 {[%clk 0:00:17]}  Nf6 {[%clk 0:00:54]} 30. Nc3 {[%clk 0:00:16]}  Kg7 {[%clk 0:00:49]} 31. e5 {[%clk 0:00:15]}  dxe5 {[%clk 0:00:26]} 32. fxe5 {[%clk 0:00:12]}  Qxe5 {[%clk 0:00:14]} 33. Bxb7 {[%clk 0:00:12]}  Qe1+ {[%clk 0:00:15]} 34. Kh2 {[%clk 0:00:12]}  Qe5+ {[%clk 0:00:15]} 35. Qg3 {[%clk 0:00:13]}  Qe7 {[%clk 0:00:14]} 36. Qf3 {[%clk 0:00:11]}  Nh7 {[%clk 0:00:13]} 37. Nd5 {[%clk 0:00:09]}  Qd7 {[%clk 0:00:13]} 38. Ba8 {[%clk 0:00:09]}  Ng5 {[%clk 0:00:13]} 39. Qc3+ {[%clk 0:00:06]}  Kh7 {[%clk 0:00:12]} 40. Nf6+ {[%clk 0:00:05]}  Kh6 {[%clk 0:00:13]} 41. Nxd7 {[%clk 0:00:05]}  Nh7 {[%clk 0:00:13]} 42. Qe5 {[%clk 0:00:05]}  h4 {[%clk 0:00:14]} 43. Qe3+ {[%clk 0:00:05]}  g5 {[%clk 0:00:15]} 44. Qe5 {[%clk 0:00:05]}  Kg6 {[%clk 0:00:15]} 45. Qd6+ {[%clk 0:00:06]}  Kh5 {[%clk 0:00:16]} 46. Ne5 {[%clk 0:00:06]}  f6 {[%clk 0:00:17]} 47. Nf7 {[%clk 0:00:06]}  Kg6 {[%clk 0:00:17]} 48. Qe6 {[%clk 0:00:06]}  Nf8 {[%clk 0:00:17]} 49. Be4+ {[%clk 0:00:04]}  Kg7 {[%clk 0:00:17]} 50. Qe7 {[%clk 0:00:05]}  Ng6 {[%clk 0:00:17]} 51. Bxg6 {[%clk 0:00:03]}  Kxg6 {[%clk 0:00:18]} 52. Nh8+ {[%clk 0:00:03]}  Kh6 {[%clk 0:00:17]} 53. Qd7 {[%clk 0:00:04]}  g4 {[%clk 0:00:18]} 54. Qc7 {[%clk 0:00:05]}  Kg5 {[%clk 0:00:18]} 55. hxg4 {[%clk 0:00:05]}  h3 {[%clk 0:00:18]} 56. Qxb6 {[%clk 0:00:06]}  f5 {[%clk 0:00:18]} 57. gxh3 {[%clk 0:00:05]}  fxg4 {[%clk 0:00:18]} 58. hxg4 {[%clk 0:00:06]}  Kh4 {[%clk 0:00:19]} 59. Qxa6 {[%clk 0:00:07]}  Kxg4 {[%clk 0:00:20]} 60. Qc4+ {[%clk 0:00:07]}  Kf3 {[%clk 0:00:20]} 61. b4 {[%clk 0:00:07]}  Ke3 {[%clk 0:00:21]} 62. b5 {[%clk 0:00:08]}  Kd2 {[%clk 0:00:22]} 63. b6 {[%clk 0:00:09]}  Ke1 {[%clk 0:00:23]} 64. b7 {[%clk 0:00:10]}  Kf2 {[%clk 0:00:23]} 65. b8=Q {[%clk 0:00:10]}  Ke3 {[%clk 0:00:24]} 66. Qe5+ {[%clk 0:00:10]}  Kd2 {[%clk 0:00:25]} 67. Qee2# {[%clk 0:00:09]} 1-0


[Site "https://www.chess.com"]

[Event "Titled Tuesday Blitz February 28 Early 2023"]
[White "EdmundPlayer"]
[Black "mohsengabr2002"]
[WhiteElo "2198"]
[BlackElo "2408"]
[Result "0-1"]
[Round "05"]
[TimeControl "180+2"]
[Date "2023.02.28"]
[WhiteClock "0:00:02"]
[BlackClock "0:00:42"]

1. e4 {[%clk 0:03:00]}  c5 {[%clk 0:02:59]} 2. Nf3 {[%clk 0:02:59]}  d6 {[%clk 0:02:58]} 3. d4 {[%clk 0:02:59]}  cxd4 {[%clk 0:02:59]} 4. Nxd4 {[%clk 0:02:59]}  a6 {[%clk 0:02:59]} 5. h3 {[%clk 0:02:55]}  e5 {[%clk 0:02:58]} 6. Ne2 {[%clk 0:02:54]}  Nc6 {[%clk 0:02:58]} 7. Nbc3 {[%clk 0:02:53]}  Be6 {[%clk 0:02:58]} 8. Nd5 {[%clk 0:02:51]}  Nge7 {[%clk 0:02:54]} 9. Nec3 {[%clk 0:02:41]}  Nc8 {[%clk 0:02:47]} 10. Be3 {[%clk 0:02:39]}  Be7 {[%clk 0:02:45]} 11. Nxe7 {[%clk 0:02:28]}  N6xe7 {[%clk 0:02:39]} 12. f4 {[%clk 0:02:22]}  exf4 {[%clk 0:02:32]} 13. Bxf4 {[%clk 0:02:22]}  O-O {[%clk 0:02:32]} 14. Bd3 {[%clk 0:02:19]}  d5 {[%clk 0:02:31]} 15. exd5 {[%clk 0:02:03]}  Nxd5 {[%clk 0:02:30]} 16. Nxd5 {[%clk 0:02:03]}  Bxd5 {[%clk 0:02:30]} 17. O-O {[%clk 0:02:00]}  Qb6+ {[%clk 0:02:30]} 18. Kh1 {[%clk 0:01:59]}  Qxb2 {[%clk 0:02:29]} 19. Bxh7+ {[%clk 0:01:51]}  Kxh7 {[%clk 0:02:29]} 20. Qxd5 {[%clk 0:01:46]}  Ne7 {[%clk 0:02:17]} 21. Qh5+ {[%clk 0:01:29]}  Kg8 {[%clk 0:02:17]} 22. Bd6 {[%clk 0:01:28]}  g6 {[%clk 0:01:58]} 23. Qg5 {[%clk 0:01:10]}  Nf5 {[%clk 0:01:45]} 24. Bxf8 {[%clk 0:00:59]}  Rxf8 {[%clk 0:01:46]} 25. Rae1 {[%clk 0:00:58]}  Qxc2 {[%clk 0:01:42]} 26. Rf3 {[%clk 0:00:44]}  Nd6 {[%clk 0:01:28]} 27. Rf4 {[%clk 0:00:34]}  Qxa2 {[%clk 0:01:24]} 28. Qf6 {[%clk 0:00:27]}  Qd2 {[%clk 0:01:14]} 29. Ref1 {[%clk 0:00:19]}  Ne8 {[%clk 0:01:10]} 30. Qg5 {[%clk 0:00:13]}  Ng7 {[%clk 0:01:08]} 31. Qe5 {[%clk 0:00:12]}  Ne6 {[%clk 0:01:04]} 32. Rf6 {[%clk 0:00:10]}  Qd3 {[%clk 0:00:55]} 33. R1f2 {[%clk 0:00:07]}  Ng7 {[%clk 0:00:52]} 34. R6f4 {[%clk 0:00:04]}  Re8 {[%clk 0:00:50]} 35. Qc7 {[%clk 0:00:02]}  Nf5 {[%clk 0:00:42]} 0-1


[Site "https://www.chess.com"]

[Event "Titled Tuesday Blitz February 28 Early 2023"]
[White "Fernandez Hernandez, Gerardo"]
[Black "Valle Maytin, Luis Enrique"]
[WhiteFideId "2207400"]
[BlackFideId "3503666"]
[WhiteElo "2189"]
[BlackElo "2225"]
[Result "0-1"]
[Round "05"]
[TimeControl "180+2"]
[Date "2023.02.28"]
[WhiteClock "0:00:02"]
[BlackClock "0:00:36"]

1. e4 {[%clk 0:02:56]}  c6 {[%clk 0:03:00]} 2. d4 {[%clk 0:02:52]}  d5 {[%clk 0:03:01]} 3. exd5 {[%clk 0:02:51]}  cxd5 {[%clk 0:03:02]} 4. c4 {[%clk 0:02:51]}  Nf6 {[%clk 0:03:01]} 5. Nc3 {[%clk 0:02:51]}  Nc6 {[%clk 0:03:02]} 6. Bf4 {[%clk 0:02:49]}  Be6 {[%clk 0:02:48]} 7. c5 {[%clk 0:02:49]}  g6 {[%clk 0:02:47]} 8. Nf3 {[%clk 0:02:48]}  Bg7 {[%clk 0:02:47]} 9. Bb5 {[%clk 0:02:48]}  O-O {[%clk 0:02:48]} 10. Bxc6 {[%clk 0:02:47]}  bxc6 {[%clk 0:02:49]} 11. Ne5 {[%clk 0:02:47]}  Qc8 {[%clk 0:02:43]} 12. Qa4 {[%clk 0:02:46]}  Bd7 {[%clk 0:02:41]} 13. O-O {[%clk 0:02:42]}  Nh5 {[%clk 0:02:37]} 14. Be3 {[%clk 0:02:37]}  Bxe5 {[%clk 0:02:31]} 15. dxe5 {[%clk 0:02:35]}  Ng7 {[%clk 0:02:31]} 16. Bh6 {[%clk 0:02:25]}  Qc7 {[%clk 0:02:24]} 17. f4 {[%clk 0:02:17]}  Bf5 {[%clk 0:02:22]} 18. Rfd1 {[%clk 0:02:00]}  Rfb8 {[%clk 0:02:20]} 19. b4 {[%clk 0:01:57]}  a5 {[%clk 0:02:18]} 20. b5 {[%clk 0:01:35]}  cxb5 {[%clk 0:02:17]} 21. Nxd5 {[%clk 0:01:28]}  Qxc5+ {[%clk 0:02:13]} 22. Qd4 {[%clk 0:01:27]}  Qxd4+ {[%clk 0:02:08]} 23. Rxd4 {[%clk 0:01:26]}  Ra7 {[%clk 0:01:30]} 24. Bg5 {[%clk 0:01:11]}  Kf8 {[%clk 0:01:26]} 25. Rad1 {[%clk 0:00:55]}  Ne6 {[%clk 0:01:23]} 26. Bh6+ {[%clk 0:00:48]}  Ke8 {[%clk 0:01:23]} 27. R4d2 {[%clk 0:00:37]}  Bg4 {[%clk 0:01:10]} 28. Rc1 {[%clk 0:00:31]}  Rd7 {[%clk 0:01:09]} 29. Rd3 {[%clk 0:00:14]}  Bf5 {[%clk 0:01:07]} 30. Rdd1 {[%clk 0:00:14]}  Be4 {[%clk 0:01:04]} 31. Ne3 {[%clk 0:00:14]}  Rxd1+ {[%clk 0:01:03]} 32. Nxd1 {[%clk 0:00:14]}  Bd5 {[%clk 0:00:54]} 33. Nc3 {[%clk 0:00:13]}  Bc4 {[%clk 0:00:53]} 34. a3 {[%clk 0:00:11]}  Nd4 {[%clk 0:00:53]} 35. Rb1 {[%clk 0:00:10]}  f6 {[%clk 0:00:44]} 36. exf6 {[%clk 0:00:10]}  exf6 {[%clk 0:00:45]} 37. f5 {[%clk 0:00:06]}  Nxf5 {[%clk 0:00:44]} 38. Re1+ {[%clk 0:00:04]}  Kf7 {[%clk 0:00:43]} 39. Bf4 {[%clk 0:00:04]}  Rb7 {[%clk 0:00:39]} 40. g4 {[%clk 0:00:04]}  Nd4 {[%clk 0:00:38]} 41. Be3 {[%clk 0:00:03]}  Nf3+ {[%clk 0:00:38]} 42. Kf2 {[%clk 0:00:03]}  Nxe1 {[%clk 0:00:39]} 43. Kxe1 {[%clk 0:00:04]}  b4 {[%clk 0:00:40]} 44. axb4 {[%clk 0:00:03]}  axb4 {[%clk 0:00:40]} 45. Na4 {[%clk 0:00:03]}  b3 {[%clk 0:00:40]} 46. Bd4 {[%clk 0:00:03]}  Be6 {[%clk 0:00:35]} 47. Bb2 {[%clk 0:00:03]}  Rb4 {[%clk 0:00:35]} 48. Nc5 {[%clk 0:00:03]}  Rxg4 {[%clk 0:00:34]} 49. Kd2 {[%clk 0:00:02]}  Rg2+ {[%clk 0:00:35]} 50. Kc3 {[%clk 0:00:02]}  Rc2+ {[%clk 0:00:35]} 51. Kb4 {[%clk 0:00:02]}  Rxb2 {[%clk 0:00:36]} 0-1


[Site "https://www.chess.com"]

[Event "Titled Tuesday Blitz February 28 Early 2023"]
[White "Kornyukov, Alexey"]
[Black "Tarnowska, Aleksandra"]
[WhiteFideId "4150457"]
[BlackFideId "1180967"]
[WhiteElo "2352"]
[BlackElo "1776"]
[Result "1-0"]
[Round "05"]
[TimeControl "180+2"]
[Date "2023.02.28"]
[WhiteClock "0:00:22"]
[BlackClock "0:00:01"]

1. e4 {[%clk 0:02:58]}  c5 {[%clk 0:02:59]} 2. Nf3 {[%clk 0:02:54]}  e6 {[%clk 0:02:58]} 3. c3 {[%clk 0:02:52]}  d5 {[%clk 0:02:56]} 4. exd5 {[%clk 0:02:51]}  Qxd5 {[%clk 0:02:56]} 5. d4 {[%clk 0:02:52]}  Nf6 {[%clk 0:02:56]} 6. Be2 {[%clk 0:02:51]}  Be7 {[%clk 0:02:55]} 7. O-O {[%clk 0:02:47]}  O-O {[%clk 0:02:56]} 8. Be3 {[%clk 0:02:36]}  cxd4 {[%clk 0:02:55]} 9. cxd4 {[%clk 0:02:35]}  Bd7 {[%clk 0:02:45]} 10. Nc3 {[%clk 0:02:30]}  Qd6 {[%clk 0:02:45]} 11. Qb3 {[%clk 0:02:20]}  Bc6 {[%clk 0:02:40]} 12. Rac1 {[%clk 0:02:12]}  Nbd7 {[%clk 0:02:33]} 13. h3 {[%clk 0:01:59]}  Nb6 {[%clk 0:02:33]} 14. Rfd1 {[%clk 0:01:56]}  Nbd5 {[%clk 0:02:13]} 15. Nxd5 {[%clk 0:01:54]}  Nxd5 {[%clk 0:02:09]} 16. Qc2 {[%clk 0:01:46]}  Nxe3 {[%clk 0:01:56]} 17. fxe3 {[%clk 0:01:43]}  Rac8 {[%clk 0:01:46]} 18. Qd2 {[%clk 0:01:36]}  Qg3 {[%clk 0:01:25]} 19. Qe1 {[%clk 0:01:29]}  Qg6 {[%clk 0:01:19]} 20. Qf2 {[%clk 0:01:27]}  Be4 {[%clk 0:01:01]} 21. Rxc8 {[%clk 0:01:21]}  Rxc8 {[%clk 0:01:01]} 22. Ne5 {[%clk 0:01:20]}  Qf6 {[%clk 0:00:51]} 23. Qxf6 {[%clk 0:01:18]}  Bxf6 {[%clk 0:00:52]} 24. Bf3 {[%clk 0:01:16]}  Bxf3 {[%clk 0:00:42]} 25. Nxf3 {[%clk 0:01:13]}  Rc2 {[%clk 0:00:41]} 26. Rd2 {[%clk 0:01:12]}  Rc1+ {[%clk 0:00:31]} 27. Kf2 {[%clk 0:01:08]}  Kf8 {[%clk 0:00:32]} 28. e4 {[%clk 0:01:08]}  Bd8 {[%clk 0:00:29]} 29. d5 {[%clk 0:01:05]}  Bb6+ {[%clk 0:00:29]} 30. Kg3 {[%clk 0:01:04]}  exd5 {[%clk 0:00:25]} 31. exd5 {[%clk 0:01:04]}  f6 {[%clk 0:00:16]} 32. d6 {[%clk 0:01:01]}  Rc8 {[%clk 0:00:13]} 33. d7 {[%clk 0:00:58]}  Rd8 {[%clk 0:00:13]} 34. Nh4 {[%clk 0:00:53]}  Bc7+ {[%clk 0:00:13]} 35. Kf2 {[%clk 0:00:52]}  g6 {[%clk 0:00:13]} 36. Nf3 {[%clk 0:00:46]}  Ke7 {[%clk 0:00:12]} 37. Re2+ {[%clk 0:00:42]}  Kxd7 {[%clk 0:00:12]} 38. Rd2+ {[%clk 0:00:39]}  Ke7 {[%clk 0:00:10]} 39. Rxd8 {[%clk 0:00:39]}  Bxd8 {[%clk 0:00:10]} 40. Ke2 {[%clk 0:00:39]}  Bb6 {[%clk 0:00:10]} 41. Kd3 {[%clk 0:00:39]}  Kd6 {[%clk 0:00:10]} 42. Kc4 {[%clk 0:00:37]}  Bf2 {[%clk 0:00:09]} 43. b4 {[%clk 0:00:36]}  a6 {[%clk 0:00:07]} 44. a4 {[%clk 0:00:36]}  h5 {[%clk 0:00:06]} 45. h4 {[%clk 0:00:30]}  Be3 {[%clk 0:00:05]} 46. Kd3 {[%clk 0:00:29]}  Bc1 {[%clk 0:00:05]} 47. Ke4 {[%clk 0:00:27]}  b5 {[%clk 0:00:03]} 48. axb5 {[%clk 0:00:24]}  axb5 {[%clk 0:00:04]} 49. Nd4 {[%clk 0:00:24]}  Bd2 {[%clk 0:00:03]} 50. Nxb5+ {[%clk 0:00:24]}  Ke7 {[%clk 0:00:02]} 51. Nd4 {[%clk 0:00:23]}  f5+ {[%clk 0:00:01]} 52. Kf3 {[%clk 0:00:22]} 1-0


[Site "https://www.chess.com"]

[Event "Titled Tuesday Blitz February 28 Early 2023"]
[White "Seifert, Henryk"]
[Black "Dilmukhametov, Artur"]
[WhiteFideId "1100963"]
[BlackFideId "24179922"]
[WhiteElo "2071"]
[BlackElo "2199"]
[Result "1-0"]
[Round "05"]
[TimeControl "180+2"]
[Date "2023.02.28"]
[WhiteClock "0:00:44"]
[BlackClock "0:01:18"]

1. e4 {[%clk 0:03:00]}  e5 {[%clk 0:02:52]} 2. Nf3 {[%clk 0:03:00]}  d5 {[%clk 0:02:51]} 3. d4 {[%clk 0:02:54]}  dxe4 {[%clk 0:02:45]} 4. Nxe5 {[%clk 0:02:54]}  Bd6 {[%clk 0:02:44]} 5. Nc4 {[%clk 0:02:46]}  Nc6 {[%clk 0:02:27]} 6. c3 {[%clk 0:02:37]}  Be6 {[%clk 0:02:18]} 7. Nbd2 {[%clk 0:02:28]}  Nf6 {[%clk 0:02:15]} 8. Nxd6+ {[%clk 0:02:01]}  Qxd6 {[%clk 0:02:14]} 9. Nc4 {[%clk 0:02:01]}  Bxc4 {[%clk 0:02:07]} 10. Bxc4 {[%clk 0:02:00]}  O-O-O {[%clk 0:02:07]} 11. Be3 {[%clk 0:01:47]}  Ng4 {[%clk 0:02:06]} 12. Qxg4+ {[%clk 0:01:44]}  Kb8 {[%clk 0:02:05]} 13. Bxf7 {[%clk 0:01:31]}  Rdf8 {[%clk 0:02:02]} 14. Bb3 {[%clk 0:01:26]}  Ne7 {[%clk 0:01:48]} 15. Qxe4 {[%clk 0:01:14]}  Nf5 {[%clk 0:01:43]} 16. O-O {[%clk 0:01:06]}  Nxe3 {[%clk 0:01:42]} 17. fxe3 {[%clk 0:00:59]}  Re8 {[%clk 0:01:38]} 18. Qf4 {[%clk 0:00:59]}  Qg6 {[%clk 0:01:34]} 19. Rae1 {[%clk 0:00:52]}  h5 {[%clk 0:01:33]} 20. e4 {[%clk 0:00:49]}  h4 {[%clk 0:01:33]} 21. e5 {[%clk 0:00:47]}  h3 {[%clk 0:01:32]} 22. g3 {[%clk 0:00:47]}  a6 {[%clk 0:01:21]} 23. Bf7 {[%clk 0:00:46]}  Ref8 {[%clk 0:01:18]} 24. Bxg6 {[%clk 0:00:45]}  Rxf4 {[%clk 0:01:18]} 25. Rxf4 {[%clk 0:00:44]} 1-0


[Site "https://www.chess.com"]